bitfinex-derivatives/quotes_BTCF0:USTF0_20260315
["timestamp","ask_amount","ask_price","bid_price","bid_amount"]
[1773581691884,0.041991,71426.0,71414.0,0.0014]
[1773581694067,0.00736,71429.0,71414.0,0.0014]
[1773581694068,0.04199,71428.0,71414.0,0.043397]
[1773581694273,0.00736,71429.0,71415.0,0.30635031]
[1773581694680,7.5e-07,71432.0,71415.0,0.30635031]
[1773581694882,7.5e-07,71432.0,71416.0,0.14306412]
[1773581695080,0.13463903,71439.0,71416.0,0.14306412]
[1773581695277,0.041985,71436.0,71418.0,0.14306412]
[1773581695672,0.041985,71436.0,71423.0,0.041992]
[1773581695868,0.001,71432.0,71424.0,0.0014]
[1773581696080,0.041983,71438.0,71425.0,0.041991]
[1773581696776,0.041983,71438.0,71424.0,0.16468619]
[1773581696777,0.04198,71444.0,71430.0,0.041988]
[1773581696983,0.13463903,71447.0,71431.0,0.0014]
[1773581697179,0.13481024,71446.0,71431.0,0.16468619]
[1773581697479,0.001,71436.0,71431.0,0.16468619]
[1773581697678,0.13481024,71446.0,71431.0,0.16468619]
[1773581697885,0.041981,71443.0,71431.0,0.16468619]
[1773581698269,0.001,71444.0,71434.0,0.041986]
[1773581698469,0.00117121,71446.0,71434.0,0.041986]
[1773581698674,0.00117121,71446.0,71435.0,0.30635031]
[1773581698976,0.00368,71443.0,71435.0,0.14306412]
[1773581699976,0.00117121,71446.0,71436.0,0.16328619]
[1773581700282,0.04315021,71446.0,71436.0,0.16328619]
[1773581700481,0.00117121,71446.0,71436.0,0.16328619]
[1773581700682,0.001,71443.0,71436.0,0.16328619]
[1773581700981,0.001,71446.0,71436.0,0.16328619]
[1773581701284,0.002,71446.0,71436.0,0.16328619]
[1773581701485,0.17861803,71446.0,71436.0,0.15732034]
[1773581701683,0.17761803,71446.0,71436.0,0.15732034]
[1773581701980,0.00010738,71445.0,71436.0,0.15732034]
[1773581702182,0.04208738,71445.0,71436.0,0.15732034]
[1773581702379,0.041981,71443.0,71436.0,0.15732034]
[1773581702688,0.04208738,71445.0,71436.0,0.15732034]
[1773581703481,0.00010738,71445.0,71436.0,0.15732034]
[1773581704875,0.00010738,71445.0,71437.0,0.041984]
[1773581705080,0.00010738,71445.0,71439.0,0.041983]
[1773581705279,0.00010738,71445.0,71437.0,0.14306412]
[1773581705479,0.00010738,71445.0,71438.0,0.0014]
[1773581705674,0.00010738,71445.0,71438.0,0.043383]
[1773581707194,0.00010738,71445.0,71439.0,0.15732034]
[1773581707887,0.13463903,71457.0,71439.0,0.19930334]
[1773581708084,0.13463903,71457.0,71442.0,0.04198]
[1773581708085,0.29762649,71456.0,71442.0,0.04198]
[1773581708291,0.041974,71454.0,71442.0,0.04198]
[1773581708587,0.25565349,71453.0,71439.0,0.14306412]
[1773581708780,0.13463903,71461.0,71439.0,0.14306412]
[1773581708781,0.17660903,71461.0,71447.0,0.041978]
[1773581708986,0.25581294,71460.0,71448.0,0.0014]
[1773581709187,0.25564305,71459.0,71448.0,0.0014]
[1773581709380,0.00368,71454.0,71448.0,0.0014]
[1773581709576,0.00368,71454.0,71449.0,0.15732034]
[1773581709777,0.00016989,71460.0,71450.0,0.18504012]
[1773581710084,0.001,71456.0,71450.0,0.041976]
[1773581710387,0.041973,71455.0,71434.0,0.14306412]
[1773581710585,0.17661203,71455.0,71446.0,0.15732034]
[1773581710892,0.17661103,71457.0,71447.0,0.0014]
[1773581711193,0.00116989,71460.0,71446.0,0.18504312]
[1773581711385,0.00116989,71460.0,71447.0,0.0014]
[1773581711586,0.00016989,71460.0,71447.0,0.0014]
[1773581711782,0.00016989,71460.0,71446.0,0.041979]
[1773581711982,0.00016989,71460.0,71447.0,0.15872034]
[1773581712988,0.041971,71459.0,71447.0,0.15872034]
[1773581713297,0.00238989,71460.0,71447.0,0.15872034]
[1773581713490,0.041973,71456.0,71447.0,0.15872034]
[1773581713690,0.041972,71458.0,71447.0,0.15872034]
[1773581714087,0.041972,71458.0,71447.0,0.15732034]
[1773581714292,0.041972,71458.0,71448.0,0.0014]
[1773581714588,0.041972,71458.0,71449.0,0.0014]
[1773581715289,0.00238989,71460.0,71449.0,0.0014]
[1773581715594,0.041972,71458.0,71449.0,0.0014]
[1773581716586,0.00238989,71460.0,71450.0,0.15732034]
[1773581717081,0.00238989,71460.0,71450.0,0.30038446]
[1773581717391,0.04436089,71460.0,71450.0,0.15732034]
[1773581719791,0.00238989,71460.0,71451.0,0.15732034]
[1773581719994,0.041974,71455.0,71451.0,0.15732034]
[1773581720195,0.041974,71455.0,71452.0,0.0014]
[1773581720392,0.041974,71455.0,71443.0,0.18504412]
[1773581720596,0.041974,71455.0,71444.0,0.15872034]
[1773581721693,0.041972,71457.0,71444.0,0.20070034]
[1773581727207,0.041977,71450.0,71445.0,0.0014]
[1773581727505,0.041975,71452.0,71446.0,0.0014]
[1773581728311,0.041976,71451.0,71446.0,0.0014]
[1773581728506,0.041976,71452.0,71447.0,0.15732034]
[1773581730302,0.041976,71452.0,71448.0,0.0014]
[1773581731193,0.044196,71452.0,71448.0,0.0014]
[1773581733808,0.041976,71451.0,71449.0,0.0014]
[1773581734010,0.041976,71451.0,71450.0,0.0014]
[1773581734899,0.00016989,71460.0,71450.0,0.0014]
[1773581735098,0.041976,71451.0,71442.0,0.13129729]
[1773581735306,0.041976,71451.0,71435.0,0.16367636]
[1773581735307,0.12926151,71460.0,71443.0,0.0014]
[1773581735519,0.041972,71458.0,71444.0,0.17467729]
[1773581735822,0.041965,71470.0,71459.0,0.13129729]
[1773581736007,0.041965,71470.0,71460.0,0.13269729]
[1773581736217,0.041965,71470.0,71461.0,0.0014]
[1773581736510,0.041966,71468.0,71461.0,0.0014]
[1773581736694,0.041967,71466.0,71461.0,0.0014]
[1773581737913,0.041968,71464.0,71462.0,0.0014]
[1773581738208,0.041968,71464.0,71463.0,0.0014]
[1773581738400,0.041968,71464.0,71450.0,0.041976]
[1773581738599,0.041968,71464.0,71451.0,0.0014]
[1773581738799,0.041967,71466.0,71451.0,0.0014]
[1773581739000,0.041967,71466.0,71451.0,0.043375]
[1773581739507,0.00368,71467.0,71453.0,0.041975]
[1773581739714,0.00368,71467.0,71454.0,0.13129729]
[1773581740220,0.00069949,71481.0,71463.0,0.13129729]
[1773581740522,0.00069949,71481.0,71464.0,0.0014]
[1773581741409,0.041963,71474.0,71464.0,0.0014]
[1773581742317,0.12909162,71474.0,71465.0,0.0014]
[1773581742618,0.041964,71471.0,71465.0,0.0014]
[1773581742803,0.12909162,71480.0,71465.0,0.0014]
[1773581743907,0.041964,71472.0,71465.0,0.0014]
[1773581744102,0.00209949,71481.0,71465.0,0.0014]
[1773581744308,0.12909162,71480.0,71457.0,0.13129729]
[1773581744509,0.041965,71471.0,71459.0,0.0014]
[1773581745006,0.041965,71469.0,71459.0,0.0014]
[1773581745415,0.041964,71472.0,71459.0,0.0014]
[1773581748918,0.041963,71474.0,71459.0,0.13269729]
[1773581749218,0.041963,71473.0,71461.0,0.13129729]
[1773581750212,0.041964,71472.0,71461.0,0.13129729]
[1773581751816,0.041965,71470.0,71461.0,0.13129729]
[1773581752020,0.13008975,71475.0,71459.0,0.0014]
[1773581752916,0.041965,71470.0,71459.0,0.0014]
[1773581753123,0.041964,71471.0,71459.0,0.043371]
[1773581753921,0.041964,71471.0,71459.0,0.0014]
[1773581754116,0.00368,71475.0,71459.0,0.13789067]
[1773581754311,0.00069949,71481.0,71472.0,0.13649067]
[1773581754510,0.041957,71484.0,71472.0,0.13649067]
[1773581754511,0.041957,71484.0,71473.0,0.0014]
[1773581754720,0.041945,71504.0,71473.0,0.13789067]
[1773581754918,0.041954,71489.0,71476.0,0.17845167]
[1773581755625,0.041954,71489.0,71477.0,0.13649067]
[1773581755828,0.041954,71488.0,71477.0,0.13649067]
[1773581756229,0.041953,71490.0,71478.0,0.04196]
[1773581756528,0.001,71489.0,71478.0,0.04196]
[1773581757024,0.041952,71492.0,71481.0,0.13649067]
[1773581757323,0.12640975,71504.0,71482.0,0.13789067]
[1773581757508,0.12640975,71504.0,71484.0,0.13649067]
[1773581757710,0.0014,71507.0,71492.0,0.00367]
[1773581757912,0.12640975,71507.0,71491.0,0.0014]
[1773581758121,0.12780975,71507.0,71492.0,0.0014]
[1773581758316,0.041949,71498.0,71492.0,0.0014]
[1773581758519,0.041947,71500.0,71492.0,0.0014]
[1773581759020,0.041946,71502.0,71492.0,0.0014]
[1773581759522,0.12640975,71511.0,71492.0,0.13789067]
[1773581759721,0.12640975,71518.0,71501.0,0.08802271]
[1773581760027,0.041944,71505.0,71502.0,7.1e-07]
[1773581760230,0.041943,71507.0,71503.0,0.0014]
[1773581760415,0.12640975,71518.0,71503.0,0.0014]
[1773581760615,0.041944,71506.0,71503.0,7.1e-07]
[1773581760927,0.12740975,71518.0,71503.0,7.1e-07]
[1773581761916,0.00367,71512.0,71503.0,7.1e-07]
[1773581762320,0.041943,71508.0,71503.0,7.1e-07]
[1773581764029,0.041942,71510.0,71503.0,7.1e-07]
[1773581764331,0.041931,71528.0,71503.0,7.1e-07]
[1773581764332,0.12640975,71523.0,71503.0,0.13649138]
[1773581764514,0.041936,71519.0,71505.0,0.041944]
[1773581764722,0.041936,71519.0,71512.0,0.00367]
[1773581764919,0.041936,71519.0,71512.0,0.00507]
[1773581765423,0.00367,71514.0,71512.0,0.00507]
[1773581765726,0.12640975,71525.0,71512.0,0.00507]
[1773581765931,0.041939,71514.0,71509.0,0.0014]
[1773581766133,0.041939,71514.0,71510.0,0.0014]
[1773581766322,0.041939,71514.0,71511.0,0.0014]
[1773581766622,0.041939,71514.0,71512.0,0.0014]
[1773581766824,0.041939,71514.0,71513.0,0.0014]
[1773581768333,0.041939,71514.0,71500.0,0.041947]
[1773581768334,0.12640975,71520.0,71504.0,0.0014]
[1773581768916,0.041943,71508.0,71504.0,0.0014]
[1773581769320,0.041943,71507.0,71504.0,0.0014]
[1773581770824,0.041944,71506.0,71504.0,0.0014]
[1773581771019,0.12640975,71513.0,71487.0,0.041954]
[1773581771224,0.12640975,71513.0,71488.0,0.0014]
[1773581773131,0.041948,71500.0,71488.0,0.0014]
[1773581774334,0.041948,71499.0,71488.0,0.0014]
[1773581775631,0.12640975,71502.0,71489.0,0.0014]
[1773581775835,0.041951,71493.0,71489.0,0.0014]
[1773581776138,0.041951,71493.0,71490.0,0.0014]
[1773581776331,0.041951,71493.0,71486.0,0.00368]
[1773581776531,0.041951,71493.0,71487.0,0.0014]
[1773581776730,0.12640975,71504.0,71483.0,0.0014]
[1773581776932,0.041944,71505.0,71483.0,0.0014]
[1773581776933,0.041955,71487.0,71483.0,0.0014]
[1773581777132,0.041956,71486.0,71472.0,0.041963]
[1773581777434,0.041956,71486.0,71473.0,0.0014]
[1773581778635,0.041956,71485.0,71473.0,0.0014]
[1773581778839,0.12640975,71488.0,71473.0,0.0014]
[1773581779030,0.041958,71482.0,71473.0,0.0014]
[1773581779829,0.12640975,71488.0,71473.0,0.0014]
[1773581779830,0.041957,71484.0,71473.0,0.0014]
[1773581780232,0.12640975,71488.0,71473.0,0.0014]
[1773581780537,0.0014,71499.0,71474.0,0.0014]
[1773581780538,0.041958,71481.0,71474.0,0.0014]
[1773581780943,0.0014,71499.0,71474.0,0.0014]
[1773581780944,0.16836875,71480.0,71474.0,0.0014]
[1773581781146,0.16836875,71480.0,71470.0,0.08808577]
[1773581781338,0.041959,71480.0,71474.0,0.0014]
[1773581782035,0.041959,71480.0,71475.0,0.0014]
[1773581782244,0.041958,71482.0,71476.0,0.0014]
[1773581782547,0.041958,71482.0,71470.0,0.08808577]
[1773581782743,0.041958,71482.0,71471.0,0.0014]
[1773581784554,0.041957,71484.0,71471.0,0.1323219]
[1773581784741,0.041957,71484.0,71474.0,0.08808577]
[1773581786144,0.041957,71484.0,71474.0,0.21900767]
[1773581786351,0.041957,71484.0,71475.0,0.1309219]
[1773581787547,0.040557,71484.0,71475.0,0.1309219]
[1773581787743,0.13443355,71498.0,71475.0,0.1309219]
[1773581787944,0.13443355,71503.0,71480.0,0.21900767]
[1773581788144,0.0014,71502.0,71481.0,0.0014]
[1773581788340,0.13443355,71501.0,71481.0,0.1323219]
[1773581788547,0.00735,71504.0,71490.0,7.7e-07]
[1773581788739,0.14178355,71504.0,71490.0,7.7e-07]
[1773581788937,0.14178355,71504.0,71491.0,0.0014]
[1773581789143,0.041954,71489.0,71481.0,0.1309219]
[1773581789350,0.13443355,71504.0,71482.0,0.0014]
[1773581789945,0.13543355,71504.0,71482.0,0.00508]
[1773581790146,0.13443355,71503.0,71482.0,0.00508]
[1773581790450,0.041954,71489.0,71482.0,0.00508]
[1773581792850,0.041954,71489.0,71482.0,0.0014]
[1773581794760,0.041953,71491.0,71482.0,0.0014]
[1773581795159,0.041951,71493.0,71482.0,0.0014]
[1773581795361,0.13443355,71503.0,71484.0,0.1309219]
[1773581795557,0.041952,71493.0,71482.0,0.0014]
[1773581795756,0.041952,71492.0,71482.0,0.0014]
[1773581798556,0.041953,71491.0,71482.0,0.0014]
[1773581802767,0.041951,71493.0,71482.0,0.0014]
[1773581804062,0.041952,71492.0,71482.0,0.0014]
[1773581804962,0.13443355,71497.0,71482.0,0.0014]
[1773581805970,0.041954,71489.0,71482.0,0.0014]
[1773581806267,0.041954,71489.0,71483.0,0.0014]
[1773581806569,0.041954,71489.0,71484.0,0.0014]
[1773581808670,0.041954,71489.0,71485.0,0.0014]
[1773581809070,0.041954,71489.0,71477.0,0.21840269]
[1773581809271,0.041954,71489.0,71478.0,0.0014]
[1773581809472,0.041954,71488.0,71479.0,0.0014]
[1773581810066,0.041954,71488.0,71480.0,0.0014]
[1773581810272,0.04196,71478.0,71473.0,0.25138604]
[1773581810570,0.041959,71480.0,71474.0,0.0014]
[1773581811978,0.041959,71480.0,71465.0,0.25138604]
[1773581811979,0.12263833,71480.0,71465.0,0.25138604]
[1773581812181,0.041961,71477.0,71466.0,0.0014]
[1773581812488,0.12263833,71478.0,71466.0,0.0014]
[1773581812691,0.12263833,71478.0,71464.0,0.21941349]
[1773581812980,0.041963,71473.0,71468.0,0.08809679]
[1773581813287,0.041963,71473.0,71465.0,0.0014]
[1773581813587,0.041962,71475.0,71465.0,0.0014]
[1773581814289,0.041962,71475.0,71468.0,0.001]
[1773581815790,0.041962,71475.0,71465.0,0.0024]
[1773581816185,0.041963,71474.0,71465.0,0.0024]
[1773581816388,0.041963,71474.0,71466.0,0.0014]
[1773581816691,0.041963,71474.0,71464.0,0.08809679]
[1773581816692,0.0014,71490.0,71464.0,0.21925571]
[1773581816984,0.00736,71494.0,71470.0,0.08809679]
[1773581816985,0.12263833,71493.0,71470.0,0.08809679]
[1773581817791,0.12263833,71501.0,71467.0,0.041966]
[1773581817990,0.041959,71480.0,71467.0,0.041966]
[1773581819083,0.041959,71480.0,71470.0,0.08809679]
[1773581822086,0.00736,71494.0,71471.0,0.13115892]
[1773581822391,0.00736,71494.0,71484.0,0.08809679]
[1773581822589,0.00736,71494.0,71485.0,0.0014]
[1773581822790,0.049311,71494.0,71485.0,0.0014]
[1773581822982,0.00736,71494.0,71485.0,0.0014]
[1773581824585,0.12263833,71500.0,71485.0,0.0014]
[1773581825194,0.041952,71492.0,71485.0,0.0014]
[1773581825589,0.041954,71489.0,71486.0,0.0014]
[1773581825794,0.041954,71489.0,71487.0,0.0014]
[1773581825987,0.041954,71489.0,71488.0,0.0014]
[1773581826493,0.041954,71489.0,71480.0,0.08809679]
[1773581826683,0.041954,71489.0,71481.0,0.0014]
[1773581827896,0.041953,71491.0,71481.0,0.0014]
[1773581829194,0.12263833,71496.0,71481.0,0.0014]
[1773581829496,0.12999833,71494.0,71481.0,0.0014]
[1773581829995,0.12999833,71494.0,71484.0,0.08809679]
[1773581830197,0.12999833,71494.0,71481.0,0.0014]
[1773581831093,0.041953,71491.0,71481.0,0.0014]
[1773581831803,0.041953,71490.0,71481.0,0.0014]
[1773581836297,0.049311,71494.0,71481.0,0.043358]
[1773581836604,0.041951,71493.0,71484.0,0.08809679]
[1773581836801,0.041952,71492.0,71483.0,0.08803712]
[1773581838497,0.041953,71491.0,71483.0,0.08803712]
[1773581838700,0.041953,71490.0,71483.0,0.08803712]
[1773581842403,0.041952,71492.0,71483.0,0.08803712]
[1773581842593,0.041952,71492.0,71483.0,0.2183492]
[1773581842797,0.041952,71491.0,71483.0,0.08803712]
[1773581844008,0.041953,71490.0,71483.0,0.08803712]
[1773581844404,0.12635148,71494.0,71484.0,0.0014]
[1773581844706,0.12635148,71494.0,71480.0,0.08803712]
[1773581844908,0.12635148,71494.0,71481.0,0.0014]
[1773581845208,0.12635148,71494.0,71484.0,0.08803712]
[1773581845401,0.11899148,71494.0,71484.0,0.08803712]
[1773581845600,0.041955,71487.0,71481.0,0.0014]
[1773581855110,0.12635148,71494.0,71481.0,0.0014]
[1773581855411,0.041957,71484.0,71480.0,0.08803712]
[1773581855711,0.041957,71484.0,71481.0,0.0014]
[1773581855908,0.041957,71484.0,71482.0,0.0014]
[1773581856108,0.041957,71484.0,71483.0,0.0014]
[1773581861418,0.041956,71486.0,71483.0,0.0014]
[1773581862122,0.041956,71486.0,71484.0,0.0014]
[1773581862421,0.041956,71486.0,71485.0,0.0014]
[1773581863719,0.041956,71486.0,71474.0,0.27482137]
[1773581863919,0.041956,71486.0,71475.0,0.0014]
[1773581864120,0.041956,71485.0,71475.0,0.0014]
[1773581865520,0.041957,71484.0,71475.0,0.0014]
[1773581867126,0.041957,71483.0,71475.0,0.0014]
[1773581867717,0.041957,71483.0,71474.0,0.27482137]
[1773581868015,0.11899148,71493.0,71475.0,0.0014]
[1773581868219,0.041959,71480.0,71476.0,0.0014]
[1773581868526,0.041962,71476.0,71470.0,0.08803712]
[1773581868715,0.041962,71476.0,71471.0,0.0014]
[1773581869821,0.041962,71476.0,71471.0,0.0024]
[1773581870016,0.041862,71476.0,71471.0,0.0024]
[1773581872019,0.041762,71476.0,71471.0,0.0024]
[1773581872822,0.041762,71476.0,71471.0,0.0014]
[1773581873022,0.041762,71476.0,71471.0,0.0024]
[1773581873328,0.041662,71476.0,71471.0,0.001]
[1773581873512,0.041662,71476.0,71472.0,0.0014]
[1773581875526,0.041662,71476.0,71472.0,0.0024]
[1773581876423,0.1254643,71485.0,71470.0,0.0014]
[1773581876623,0.1254643,71485.0,71471.0,0.0014]
[1773581876823,0.041966,71468.0,71460.0,0.08803712]
[1773581877024,0.041965,71470.0,71461.0,0.0014]
[1773581880329,0.1254643,71485.0,71462.0,0.16970153]
[1773581880529,0.041959,71480.0,71475.0,0.08803712]
[1773581880828,0.1254643,71491.0,71476.0,0.0014]
[1773581881036,0.041959,71481.0,71477.0,0.0014]
[1773581881226,0.041959,71481.0,71478.0,0.0014]
[1773581881428,0.041959,71481.0,71470.0,0.08803712]
[1773581881632,0.041959,71480.0,71471.0,0.0028015]
[1773581882632,0.04196,71479.0,71471.0,0.0028015]
[1773581883236,0.1254643,71488.0,71471.0,0.0028015]
[1773581884039,0.1254643,71488.0,71478.0,1.2e-07]
[1773581884240,0.1254643,71488.0,71479.0,0.0014]
[1773581884437,0.1254643,71488.0,71480.0,0.0014]
[1773581884937,0.1254643,71488.0,71481.0,0.0014]
[1773581885231,0.041959,71480.0,71478.0,1.2e-07]
[1773581885437,0.1254643,71488.0,71479.0,0.0014]
[1773581885637,0.1254643,71488.0,71470.0,0.08803712]
[1773581885831,0.1254643,71488.0,71478.0,1.2e-07]
[1773581886036,0.1254643,71488.0,71479.0,0.0014]
[1773581886343,0.041959,71480.0,71467.0,0.041966]
[1773581886525,0.04196,71478.0,71470.0,0.08803712]
[1773581890132,0.04196,71478.0,71471.0,0.0014]
[1773581891036,0.1254643,71480.0,71471.0,0.0014]
[1773581891737,0.1254643,71480.0,71472.0,0.0014]
[1773581891942,0.041962,71476.0,71472.0,0.0014]
[1773581892745,0.041962,71476.0,71473.0,0.0014]
[1773581893044,0.1254643,71475.0,71473.0,0.0014]
[1773581893439,0.1254643,71475.0,71464.0,0.00368]
[1773581893640,0.1254643,71475.0,71465.0,0.0014]
[1773581893839,0.041963,71473.0,71465.0,0.0014]
[1773581895847,0.041964,71472.0,71460.0,0.08803712]
[1773581896049,0.041964,71472.0,71461.0,0.0014]
[1773581896438,0.1254643,71475.0,71462.0,0.0014]
[1773581897247,0.1254643,71475.0,71463.0,0.0014]
[1773581897842,0.041966,71469.0,71463.0,0.0014]
[1773581899346,0.1254643,71479.0,71463.0,0.0014]
[1773581899540,0.1254643,71488.0,71469.0,0.08811384]
[1773581899741,0.19580838,71487.0,71469.0,0.08811384]
[1773581899944,0.1254643,71485.0,71469.0,0.08811384]
[1773581900140,0.32127268,71484.0,71469.0,0.08811384]
[1773581900346,0.041964,71472.0,71463.0,0.0014]
[1773581900547,0.21868343,71489.0,71467.0,0.16969853]
[1773581900751,0.3212695,71488.0,71470.0,0.08811384]
[1773581900942,0.3212695,71487.0,71471.0,0.0014]
[1773581901144,0.3212695,71486.0,71471.0,0.0014]
[1773581901338,0.1958052,71485.0,71471.0,0.0014]
[1773581901746,0.33129994,71485.0,71472.0,0.0014]
[1773581901958,0.041962,71474.0,71473.0,0.0014]
[1773581902954,0.041961,71476.0,71473.0,0.0014]
[1773581903248,0.041961,71476.0,71463.0,0.00368]
[1773581903554,0.041961,71476.0,71464.0,0.0014]
[1773581905656,0.041961,71476.0,71466.0,0.08811384]
[1773581906057,0.041961,71476.0,71464.0,0.0014]
[1773581906259,0.13549474,71480.0,71463.0,0.17485251]
[1773581906459,0.041962,71474.0,71464.0,0.0014]
[1773581910455,0.041963,71473.0,71464.0,0.0014]
[1773581910659,0.09321913,71489.0,71460.0,0.30775599]
[1773581910660,0.041964,71472.0,71465.0,0.0014]
[1773581913758,0.13549474,71480.0,71465.0,0.0014]
[1773581915064,0.041963,71473.0,71463.0,0.17573055]
[1773581915263,0.041963,71473.0,71464.0,0.0014]
[1773581916565,0.09321913,71489.0,71464.0,0.0014]
[1773581916566,0.041962,71475.0,71464.0,0.0014]
[1773581916769,0.041962,71475.0,71465.0,0.08811384]
[1773581917165,0.13549474,71484.0,71466.0,0.041967]
[1773581917463,0.041961,71477.0,71470.0,0.08811384]
[1773581917667,0.041961,71477.0,71471.0,0.0014]
[1773581922764,0.041963,71474.0,71472.0,0.0014]
[1773581923070,0.13549474,71480.0,71463.0,0.176018]
[1773581923071,0.041961,71476.0,71473.0,0.0014]
[1773581923272,0.041961,71476.0,71474.0,0.0014]
[1773581923471,0.041961,71476.0,71475.0,0.0014]
[1773581923966,0.04196,71478.0,71475.0,0.0014]
[1773581924371,0.041955,71487.0,71477.0,0.00420084]
[1773581924567,0.041954,71489.0,71478.0,0.04196]
[1773581924970,0.041953,71490.0,71478.0,0.04196]
[1773581925281,0.041952,71492.0,71483.0,0.00420084]
[1773581925469,0.031952,71492.0,71484.0,0.0014]
[1773581925671,0.041953,71491.0,71484.0,0.0014]
[1773581927178,0.036923,71491.0,71484.0,0.0014]
[1773581928980,0.041953,71490.0,71484.0,0.0014]
[1773581929167,0.041953,71490.0,71485.0,0.00420084]
[1773581931079,0.041955,71488.0,71486.0,0.0014]
[1773581931379,0.041955,71488.0,71477.0,0.08811384]
[1773581931575,0.041955,71488.0,71478.0,0.0014]
[1773581931785,0.041955,71488.0,71476.0,0.2181854]
[1773581931980,0.11932099,71461.0,71443.0,0.04698]
[1773581932168,0.041956,71484.0,71444.0,0.17952116]
[1773581932169,0.08811384,71470.0,71444.0,0.17952116]
[1773581932369,0.041974,71454.0,71440.0,0.13009584]
[1773581932671,0.041961,71477.0,71440.0,0.08811384]
[1773581932672,0.11932099,71452.0,71440.0,0.08811384]
[1773581932873,0.11932099,71452.0,71441.0,0.0014]
[1773581933173,0.00011648,71451.0,71441.0,0.0014]
[1773581933375,0.00011648,71451.0,71442.0,0.041981]
[1773581933779,0.00011648,71451.0,71441.0,0.0014]
[1773581933780,0.11932099,71497.0,71447.0,0.13084363]
[1773581933981,0.11932099,71497.0,71446.0,0.041978]
[1773581933982,0.11932099,71474.0,71461.0,0.04197]
[1773581934179,0.11932099,71474.0,71462.0,0.0014]
[1773581934382,0.11932099,71474.0,71463.0,0.0014]
[1773581934579,0.11612099,71474.0,71463.0,0.0014]
[1773581934780,0.11612099,71474.0,71461.0,0.04197]
[1773581935085,0.15808399,71474.0,71464.0,0.0014]
[1773581935382,0.11612099,71474.0,71465.0,0.0014]
[1773581936479,0.041965,71469.0,71460.0,0.02484912]
[1773581936679,0.11932099,71470.0,71454.0,0.041974]
[1773581936883,0.11932099,71470.0,71460.0,0.08811384]
[1773581937084,0.041979,71446.0,71433.0,0.041986]
[1773581937290,0.041994,71420.0,71401.0,0.042005]
[1773581937585,0.041994,71420.0,71370.0,0.24446617]
[1773581937586,0.042011,71392.0,71390.0,0.005]
[1773581937774,0.08811384,71400.0,71385.0,0.0014]
[1773581937974,0.042012,71390.0,71385.0,0.0014]
[1773581938180,0.041987,71433.0,71386.0,0.0014]
[1773581938181,0.16368215,71429.0,71386.0,0.0014]
[1773581938478,0.042008,71397.0,71386.0,0.0014]
[1773581938682,0.042006,71400.0,71386.0,0.0014]
[1773581939278,6.77e-05,71399.0,71386.0,0.0014]
[1773581941877,0.042007,71398.0,71386.0,0.0014]
[1773581943682,6.77e-05,71399.0,71386.0,0.0014]
[1773581943892,6.77e-05,71399.0,71381.0,0.00058888]
[1773581943893,0.042011,71391.0,71387.0,0.0014]
[1773581944081,0.042011,71391.0,71388.0,0.0014]
[1773581944281,0.042011,71391.0,71381.0,0.00058888]
[1773581944581,0.08830205,71391.0,71330.0,0.08830205]
[1773581944784,0.0014,71390.0,71348.0,0.15972319]
[1773581944982,0.042024,71369.0,71355.0,0.15972319]
[1773581945180,0.042022,71372.0,71356.0,0.0014]
[1773581945379,0.042022,71372.0,71357.0,0.0014]
[1773581945582,0.0014,71382.0,71357.0,0.0014]
[1773581945780,0.0014,71382.0,71330.0,0.08846263]
[1773581945781,0.042041,71340.0,71330.0,0.00016058]
[1773581946082,0.00014954,71339.0,71330.0,0.16176609]
[1773581946390,0.5,71334.0,71330.0,5.4e-07]
[1773581946578,0.042045,71333.0,71318.0,0.16160551]
[1773581946778,0.5,71334.0,71319.0,0.0014]
[1773581947076,0.5,71334.0,71319.0,0.16393286]
[1773581947275,0.5,71334.0,71311.0,0.19961128]
[1773581947276,0.042045,71333.0,71320.0,0.0014]
[1773581947486,0.5,71334.0,71321.0,0.16393286]
[1773581947679,0.5,71334.0,71322.0,0.16393286]
[1773581947885,0.5,71334.0,71302.0,0.19961128]
[1773581947886,0.5,71334.0,71323.0,0.0014]
[1773581948079,0.5,71334.0,71310.0,0.16351695]
[1773581948284,0.5,71334.0,71311.0,0.0014]
[1773581948588,0.5,71334.0,71312.0,0.16491695]
[1773581948786,0.5,71334.0,71314.0,0.16351695]
[1773581949084,0.5,71334.0,71315.0,0.20376449]
[1773581949395,0.5,71334.0,71317.0,0.042054]
[1773581949695,0.5,71334.0,71302.0,0.19961128]
[1773581949696,0.5,71334.0,71306.0,0.16030849]
[1773581949888,0.5,71334.0,71302.0,0.19961128]
[1773581949889,0.501,71334.0,71307.0,0.0014]
[1773581950184,0.501,71334.0,71302.0,0.16030849]
[1773581950185,0.45684529,71334.0,71308.0,0.0014]
[1773581950390,0.00014954,71339.0,71312.0,0.15888287]
[1773581950590,0.001,71334.0,71308.0,0.15888287]
[1773581950890,0.001,71334.0,71313.0,0.15888287]
[1773581951089,0.042045,71334.0,71316.0,0.15888287]
[1773581951293,0.001,71334.0,71318.0,0.15016778]
[1773581951492,5.4e-07,71339.0,71320.0,0.08830205]
[1773581951682,0.06135341,71367.0,71319.0,0.15016778]
[1773581951992,0.001,71334.0,71322.0,0.15016778]
[1773581952191,0.05326907,71338.0,71323.0,0.0014]
[1773581952381,0.042046,71332.0,71324.0,0.0014]
[1773581952690,0.05359514,71364.0,71330.0,0.15178465]
[1773581952884,0.05359514,71364.0,71325.0,0.0014]
[1773581952885,0.05359514,71362.0,71333.0,0.15178465]
[1773581953086,0.001,71367.0,71336.0,0.15178465]
[1773581953289,0.04201,71394.0,71312.0,0.18770973]
[1773581953290,0.042025,71368.0,71351.0,0.19288915]
[1773581953489,0.05824263,71384.0,71352.0,0.15085515]
[1773581953689,0.05855863,71391.0,71353.0,0.15225515]
[1773581953891,0.002,71367.0,71354.0,0.15225515]
[1773581954487,0.001,71368.0,71354.0,0.15225515]
[1773581954684,0.042025,71367.0,71354.0,0.0014]
[1773581955085,0.043025,71367.0,71354.0,0.0014]
[1773581955390,0.001,71367.0,71360.0,0.14797045]